bitfinex/quotes_SOLUSD_20260226
["timestamp","ask_amount","ask_price","bid_price","bid_amount"]
[1772077010429,0.66885024,88.069,88.036,0.67561099]
[1772077012750,0.66885024,88.067,88.036,0.67561099]
[1772077014141,11.35414284,88.074,88.041,0.67561099]
[1772077014445,3.56547386,88.09,88.037,11.35886047]
[1772077014446,0.66885024,88.085,88.051,0.67561099]
[1772077015140,0.66885024,88.083,88.051,0.67561099]
[1772077016537,0.66885024,88.083,88.05,3.56547386]
[1772077016538,0.66885024,88.083,88.053,0.6271159]
[1772077017741,11.3527996,88.084,88.055,0.6271159]
[1772077018334,0.62964264,88.088,88.055,0.6271159]
[1772077018642,0.62964264,88.088,88.061,0.6271159]
[1772077019528,11.3521863,88.089,88.061,0.6271159]
[1772077019935,0.62964264,88.088,88.061,0.6271159]
[1772077022126,0.62964264,88.101,88.07,3.56547386]
[1772077022338,0.62964264,88.108,88.071,0.6271159]
[1772077022644,0.62964264,88.099,88.06,3.56547386]
[1772077022846,0.62964264,88.089,88.05,3.56547386]
[1772077023031,0.62964264,88.089,88.051,0.6271159]
[1772077023348,0.62964264,88.079,88.051,0.6271159]
[1772077024457,0.62964264,88.077,88.051,0.6271159]
[1772077024676,0.62964264,88.077,88.04,3.56547386]
[1772077024953,0.62964264,88.077,88.024,28.40110893]
[1772077024954,0.62964264,88.049,88.012,0.6271159]
[1772077025133,0.62964264,88.049,88.015,11.36163352]
[1772077025850,0.62964264,88.049,88.012,0.6271159]
[1772077025851,3.56547386,88.04,88.012,0.6271159]
[1772077026040,0.62964264,88.039,88.012,0.6271159]
[1772077026559,0.62964264,88.037,88.012,0.6271159]
[1772077027029,0.62964264,88.037,88.01,0.2]
[1772077027533,0.62964264,88.037,88.011,0.6271159]
[1772077028732,0.62964264,88.035,88.011,0.6271159]
[1772077030960,11.35924756,88.034,88.011,0.6271159]
[1772077031132,11.35924756,88.034,88.01,0.2]
[1772077031133,0.62964264,88.019,87.99,0.1]
[1772077031333,0.62964264,88.019,87.99,0.7271159]
[1772077031830,0.62964264,87.999,87.976,0.6271159]
[1772077032553,0.62964264,88.009,87.981,0.6271159]
[1772077033642,0.62964264,87.989,87.96,0.2]
[1772077033828,0.62964264,87.989,87.961,0.6271159]
[1772077034442,0.62964264,87.999,87.962,0.6271159]
[1772077034833,0.62964264,87.989,87.96,0.2]
[1772077035057,4.1951165,87.97,87.941,0.6271159]
[1772077035234,0.62964264,87.969,87.941,0.6271159]
[1772077035555,0.62964264,87.969,87.943,0.6271159]
[1772077035767,3.57876553,87.97,87.943,0.6271159]
[1772077035945,3.57876553,87.99,87.945,0.6271159]
[1772077036154,0.62964264,87.991,87.951,0.6271159]
[1772077036749,3.69383402,88.021,87.946,0.28432314]
[1772077036750,11.36247429,88.009,87.961,0.6271159]
[1772077036953,11.36167592,88.016,87.971,0.6271159]
[1772077037342,0.62964264,88.015,87.971,0.6271159]
[1772077038262,11.36182879,88.014,87.973,0.6271159]
[1772077039747,11.36125272,88.019,87.973,0.6271159]
[1772077040360,11.36125272,88.019,87.975,0.6271159]
[1772077041843,3.57876553,88.03,87.991,0.6271159]
[1772077042256,3.57876553,88.03,87.99,3.57876553]
[1772077042257,11.35989276,88.029,87.992,11.36466951]
[1772077042449,11.35989276,88.029,87.993,0.6271159]
[1772077043365,11.9895354,88.029,87.993,0.6271159]
[1772077043942,0.62964264,88.038,87.993,0.6271159]
[1772077044147,0.62964264,88.044,88.001,0.6271159]
[1772077044661,11.35808638,88.043,88.011,0.6271159]
[1772077045463,0.62964264,88.052,88.011,0.6271159]
[1772077045464,11.35744609,88.048,88.011,0.6271159]
[1772077045968,0.62964264,88.052,88.011,0.6271159]
[1772077046857,3.57876553,88.06,88.01,3.57876553]
[1772077046858,0.64738212,88.05,88.013,0.6251058]
[1772077047062,0.64738212,88.049,88.013,0.6251058]
[1772077049447,11.35744139,88.048,88.013,0.6251058]
[1772077049648,0.64738212,88.047,88.013,0.6251058]
[1772077049866,0.64738212,88.039,88.001,0.6251058]
[1772077050548,0.64738212,88.029,88.001,0.6251058]
[1772077051270,0.64738212,88.047,88.002,0.6251058]
[1772077051460,11.35860243,88.039,88.003,11.36324898]
[1772077051774,28.38984897,88.06,88.011,0.6251058]
[1772077051775,12.00469452,88.049,88.011,0.6251058]
[1772077052466,0.64738212,88.039,88.011,0.6251058]
[1772077053975,11.35873145,88.038,88.011,0.6251058]
[1772077054768,0.6141652,88.037,88.011,0.6251058]
[1772077056071,11.3589895,88.036,88.011,0.6251058]
[1772077060980,0.6141652,88.038,88.013,0.62978762]
[1772077061875,0.6141652,88.036,88.013,0.62978762]
[1772077064167,0.6141652,88.036,88.007,11.36261419]
[1772077064568,0.6141652,88.036,88.007,11.99240181]
[1772077064784,0.6141652,88.036,88.008,0.62978762]
[1772077065478,0.6141652,88.034,88.008,0.62978762]
[1772077066084,11.35857284,88.04,88.01,0.62978762]
[1772077066485,11.97273804,88.04,88.01,0.62978762]
[1772077066784,0.6141652,88.039,88.01,0.62978762]
[1772077067881,0.6141652,88.037,88.001,0.62978762]
[1772077068686,0.6141652,88.037,88.002,0.62978762]
[1772077071885,0.6141652,88.035,88.004,0.62978762]
[1772077072788,0.6141652,88.048,88.011,0.62978762]
[1772077074994,0.6141652,88.054,88.012,11.36208698]
[1772077075170,0.6141652,88.054,88.013,0.62978762]
[1772077075774,45.41125923,88.084,88.012,11.36208698]
[1772077075775,11.95587442,88.061,88.021,0.62978762]
[1772077076173,0.60010967,88.06,88.021,0.62978762]
[1772077076479,0.60010967,88.06,88.031,0.63956443]
[1772077077493,0.60010967,88.058,88.031,0.63956443]
[1772077079873,0.60010967,88.056,88.031,0.63956443]
[1772077080073,0.60010967,88.056,88.025,0.63956443]
[1772077081976,0.60010967,88.049,88.014,0.63956443]
[1772077082275,3.57876553,88.06,88.013,11.36183438]
[1772077082276,0.60010967,88.059,88.021,0.63956443]
[1772077083694,0.60010967,88.072,88.031,0.63956443]
[1772077083992,11.35473322,88.069,88.032,11.35950563]
[1772077084191,11.35473322,88.069,88.033,0.63956443]
[1772077085690,11.95484289,88.069,88.033,0.63956443]
[1772077086485,11.95484289,88.069,88.03,3.57876553]
[1772077086486,0.60010967,88.068,88.035,0.63956443]
[1772077086683,0.60010967,88.068,87.874,97.04627358]
[1772077086684,0.60010967,88.039,87.983,0.63956443]
[1772077086995,3.69383402,88.075,87.983,0.63956443]
[1772077086996,0.60010967,88.029,87.983,0.63956443]
[1772077087200,0.60010967,88.029,87.987,0.63956443]
[1772077088010,0.60010967,88.029,87.865,60.99571603]
[1772077088011,0.60010967,88.009,87.971,0.63956443]
[1772077088182,0.60010967,87.999,87.971,0.63956443]
[1772077088705,0.60010967,87.999,87.972,0.63956443]
[1772077089184,11.96332495,88.004,87.972,0.63956443]
[1772077091599,0.60010967,88.003,87.972,0.63956443]
[1772077091802,0.60010967,87.999,87.972,0.63956443]
[1772077092104,11.36247429,88.009,87.972,0.63956443]
[1772077092296,0.60010967,88.008,87.972,0.63956443]
[1772077093590,0.60010967,88.013,87.974,0.63956443]
[1772077093999,4.1788752,88.01,87.974,0.63956443]
[1772077094186,0.60010967,88.009,87.974,0.63956443]
[1772077095393,0.60010967,88.009,87.976,0.63956443]
[1772077098898,0.60010967,88.009,87.978,0.63956443]
[1772077103315,0.60010967,88.009,87.971,11.36738243]
[1772077104095,0.60010967,88.026,87.972,0.28432314]
[1772077104290,0.60010967,88.026,87.99,3.57519192]
[1772077105193,0.60010967,88.026,87.993,0.62415609]
[1772077107219,3.57519192,88.03,87.995,0.59399433]
[1772077107220,0.61418153,88.024,87.995,0.59399433]
[1772077108101,0.61418153,88.024,87.983,0.59399433]
[1772077108306,0.61418153,88.019,87.983,0.59399433]
[1772077109612,0.61418153,88.019,87.98,3.57519192]
[1772077109613,0.61418153,88.019,87.985,0.59399433]
[1772077111633,0.61418153,88.017,87.987,0.59399433]
[1772077112819,0.59635354,88.024,87.987,0.59399433]
[1772077113517,0.59635354,88.024,87.991,0.57156722]
[1772077115224,0.59635354,88.03,88.0,3.57519192]
[1772077115432,0.59635354,88.03,88.001,0.57156722]
[1772077116131,0.59635354,88.03,87.992,39.77634329]
[1772077116132,0.59635354,88.059,88.011,0.57156722]
[1772077117119,0.59635354,88.049,88.011,0.57156722]
[1772077117713,0.59635354,88.047,88.013,0.57156722]
[1772077119316,0.59635354,88.047,88.007,11.36269278]
[1772077119708,0.59635354,88.045,88.007,0.57156722]
[1772077120138,0.59635354,88.045,88.011,0.57156722]
[1772077121754,0.59635354,88.045,88.002,0.57156722]
[1772077122738,0.59635354,88.043,88.01,3.57519192]
[1772077123239,0.59635354,88.043,88.01,4.14675914]
[1772077123549,0.59635354,88.043,88.011,0.57156722]
[1772077124658,0.59635354,88.057,88.021,0.57156722]
[1772077124964,0.59635354,88.056,88.023,0.57156722]
[1772077126464,11.35653852,88.055,88.023,0.57156722]
[1772077126663,0.59635354,88.054,88.023,0.57156722]
[1772077127564,0.59635354,88.054,88.022,11.36079616]
[1772077128165,0.59635354,88.054,88.023,0.57156722]
[1772077128963,0.59635354,88.052,88.023,0.57156722]
[1772077131266,0.59635354,88.05,88.023,0.57156722]
[1772077133171,0.59635354,88.048,88.017,0.57156722]
[1772077134453,0.59635354,88.048,88.018,0.57156722]
[1772077135270,31.96493382,88.06,88.01,3.57519192]
[1772077135271,0.59635354,88.046,88.01,3.57519192]
[1772077135454,0.59635354,88.077,88.031,0.57156722]
[1772077135885,0.56522012,88.069,88.031,0.57156722]
[1772077136878,0.56522012,88.049,88.021,0.56508495]
[1772077137469,0.56522012,88.047,88.021,0.56508495]
[1772077138976,0.56522012,88.047,88.023,0.56508495]
[1772077140778,0.56522012,88.045,88.023,0.56508495]
[1772077141488,0.56522012,88.045,88.025,0.56508495]
[1772077141684,3.57519192,88.08,88.024,11.36053803]
[1772077141685,0.66522012,88.1,88.041,0.56508495]
[1772077141892,0.66522012,88.1,88.055,0.28432314]
[1772077142072,0.56522012,88.079,88.041,0.56508495]
[1772077143084,0.56522012,88.087,88.051,0.56508495]
[1772077143293,0.56522012,88.099,88.061,0.56508495]
[1772077144075,0.56522012,88.098,88.061,0.56508495]
[1772077144481,0.56522012,88.098,88.051,0.56508495]
[1772077145579,0.56522012,88.096,88.061,0.56508495]
[1772077147179,0.56522012,88.089,88.051,0.56508495]
[1772077147997,0.56522012,88.087,88.051,0.56508495]
[1772077149797,0.56522012,88.079,88.041,0.56508495]
[1772077150596,0.56522012,88.077,88.041,0.56508495]
[1772077151003,0.56522012,88.059,88.027,0.56508495]
[1772077151196,0.56522012,88.059,88.021,0.56508495]
[1772077151600,39.73750538,88.078,88.011,0.56508495]
[1772077151601,0.56522012,88.049,88.011,0.56508495]
[1772077152708,0.56522012,88.047,88.01,3.57519192]
[1772077153031,0.56522012,88.047,88.004,0.56508495]
[1772077153317,0.56522012,88.047,88.01,3.57519192]
[1772077153686,3.57519192,88.04,88.003,0.56508495]
[1772077153890,0.56522012,88.039,88.0,14.93874262]
[1772077154686,3.57519192,88.03,87.993,11.36448906]
[1772077154885,0.56522012,88.029,87.993,11.92957401]
[1772077155089,0.56522012,88.029,87.994,0.56508495]
[1772077156600,0.56522012,88.029,87.996,0.56508495]
[1772077157223,11.36002181,88.028,87.996,0.56508495]
[1772077157398,0.56522012,88.027,87.996,0.56508495]
[1772077161309,0.56522012,88.025,88.001,0.56508495]
[1772077164618,0.56522012,88.025,87.995,0.56508495]
[1772077167335,0.56365074,88.019,87.982,0.56443648]
[1772077167724,0.56365074,88.009,87.971,0.56358925]
[1772077168127,0.56365074,87.999,87.958,0.56358925]
[1772077169130,3.57346371,88.0,87.942,0.56275177]
[1772077169131,0.56365074,87.977,87.942,0.56275177]
[1772077170542,0.56365074,87.977,87.944,0.56192463]
[1772077170832,0.56365074,87.975,87.944,0.56192463]
[1772077171034,0.56365074,87.975,87.93,28.43148947]
[1772077171035,3.57346371,87.97,87.937,0.56110248]
[1772077171225,3.57346371,87.97,87.93,3.57346371]
[1772077171226,0.56365074,87.969,87.931,0.56110248]
[1772077172634,0.56365074,87.969,87.942,0.55870164]
[1772077173135,11.36669995,87.977,87.942,0.55870164]
[1772077173343,45.45134836,88.007,87.941,11.37117256]
[1772077173344,0.58128727,87.989,87.951,0.55870164]
[1772077173721,3.57346371,87.98,87.94,4.13138395]
[1772077174019,0.58128727,87.979,87.941,0.55792024]
[1772077174536,3.57346371,88.0,87.925,0.55792024]
[1772077174537,0.58128727,87.969,87.925,0.55792024]
[1772077174731,0.58128727,87.967,87.927,0.55715021]
[1772077175438,0.58128727,87.967,87.931,0.55715021]
[1772077175648,11.36777009,87.968,87.931,0.55715021]
[1772077175821,11.36777009,87.968,87.926,11.37320019]
[1772077175822,11.9485011,87.973,87.941,0.55638761]
[1772077176022,0.58128727,87.972,87.941,0.55638761]
[1772077176519,3.57346371,88.0,87.926,39.80620066]
[1772077176520,0.58128727,87.985,87.951,0.55638761]
[1772077176729,0.58128727,87.985,87.953,0.55563271]
[1772077176940,0.58128727,87.985,87.96,3.57346371]
[1772077177136,0.58128727,88.013,87.971,0.55563271]
[1772077177337,0.58128727,88.013,87.981,0.55563271]
[1772077177538,3.57346371,88.02,87.981,0.55563271]
[1772077177539,11.36208698,88.012,87.981,0.55563271]
[1772077177824,0.58128727,88.011,87.981,0.55563271]
[1772077178340,0.58128727,88.026,87.991,0.55488567]
[1772077179546,0.58128727,88.025,87.98,3.57346371]
[1772077180132,0.58128727,88.019,87.98,3.57346371]
[1772077181644,0.58128727,88.009,87.961,11.36864126]
[1772077181822,0.58128727,87.999,87.961,11.92062498]
[1772077182025,0.58128727,87.999,87.962,0.55198372]
[1772077183554,0.58128727,87.997,87.964,0.55128723]
[1772077185863,0.58128727,87.995,87.971,0.54921696]
[1772077189245,0.58128727,88.002,87.973,0.54723021]
[1772077189646,11.36350723,88.001,87.973,0.54723021]
[1772077189854,0.58128727,88.0,87.973,0.54723021]
[1772077191863,0.58128727,87.998,87.973,0.54723021]
[1772077192939,0.58128727,87.998,87.961,0.54467805]
[1772077193149,0.58128727,87.989,87.954,0.54467805]
[1772077194159,0.58128727,87.987,87.954,0.54467805]
[1772077194656,0.58128727,87.987,87.95,3.57346371]
[1772077195266,0.58128727,87.987,87.951,0.54344994]
[1772077195469,0.58128727,87.987,87.952,0.54344994]
[1772077196367,0.54865231,87.985,87.952,0.54344994]
[1772077198470,0.54865231,87.983,87.952,0.54344994]
[1772077199252,0.54865231,87.983,87.95,3.57346371]
[1772077199455,3.57346371,87.97,87.925,0.53386073]
[1772077199655,0.54865231,87.959,87.925,0.53386073]
[1772077200082,0.54865231,87.959,87.895,3.69383402]
[1772077200083,0.54865231,87.959,87.919,0.53200802]
[1772077200376,0.54865231,87.947,87.912,0.53200802]
[1772077201366,0.54865231,87.947,87.913,0.5301753]
[1772077202453,3.57346371,87.96,87.921,0.52837221]
[1772077202651,0.54865231,87.977,87.95,3.57346371]
[1772077202870,0.54865231,87.977,87.93,3.57346371]
[1772077203178,0.54865231,87.969,87.93,3.57346371]
[1772077203472,0.54865231,87.969,87.941,0.52657963]
[1772077203674,0.54865231,87.977,87.95,3.57346371]
[1772077203862,0.54865231,87.977,87.948,0.52481792]
[1772077204252,0.54865231,87.977,87.941,0.52481792]
[1772077204459,0.54865231,87.975,87.941,0.52481792]
[1772077204873,0.54865231,87.975,87.94,3.57346371]
[1772077206877,0.54865231,87.973,87.94,3.57346371]
[1772077207579,0.54865231,87.973,87.941,0.51793923]
[1772077207765,0.54865231,87.973,87.942,0.51793923]
[1772077208777,11.36563863,87.985,87.952,11.88611039]
[1772077208778,0.54865231,87.984,87.952,11.88611039]
[1772077208986,0.54865231,87.982,87.952,0.5162723]
[1772077209582,0.54865231,87.982,87.95,3.57346371]
[1772077209783,0.54865231,87.979,87.94,3.57346371]
[1772077210885,0.54865231,87.977,87.941,11.37126027]
[1772077211189,0.54865231,87.977,87.942,0.51299156]
[1772077211970,0.54865231,87.977,87.936,0.51138076]
[1772077212193,0.54865231,87.977,87.941,0.51138076]
[1772077213173,0.54865231,87.975,87.941,0.51138076]
[1772077213588,0.54865231,87.975,87.934,0.50979482]
[1772077213896,0.54865231,87.959,87.92,4.08168409]
[1772077215093,0.54865231,87.957,87.92,4.08168409]
[1772077215594,0.54865231,87.957,87.921,11.8789742]
[1772077215774,0.54865231,87.957,87.922,0.50512723]
[1772077217087,0.54865231,87.957,87.923,11.37358825]
[1772077217285,0.54865231,87.957,87.924,0.50360731]
[1772077217493,0.54865231,87.957,87.931,0.50360731]
[1772077217995,0.54865231,87.969,87.941,0.50210536]
[1772077218608,0.54865231,87.984,87.941,0.50210536]
[1772077218780,0.54865231,87.984,87.951,0.50061752]
[1772077219180,0.54865231,87.982,87.952,0.50061752]
[1772077220689,0.54865231,87.982,87.953,0.49769151]
[1772077221903,0.54865231,87.98,87.953,0.49769151]
[1772077224907,0.54865231,87.978,87.952,11.36983809]
[1772077225329,28.4102335,87.997,87.952,11.36983809]
[1772077225330,0.54865231,87.987,87.961,0.49204704]
[1772077225819,11.36414883,87.997,87.96,3.57938137]
[1772077225820,0.51922025,88.008,87.981,0.4893286]
[1772077227119,0.51922025,88.006,87.981,0.4893286]
[1772077227520,0.51922025,88.006,87.976,11.36667376]
[1772077228417,0.51922025,88.006,87.975,0.48798648]
[1772077228805,0.51922025,88.006,87.96,3.57938137]
[1772077229026,0.51922025,88.006,87.97,3.57938137]
[1772077229207,0.51922025,88.004,87.98,3.57938137]
[1772077229520,11.36242101,88.01,87.981,0.48535208]
[1772077229728,11.36242101,88.01,87.99,3.57938137]
[1772077229920,0.51922025,88.011,87.99,3.57938137]
[1772077230505,0.51922025,88.011,87.963,39.78945692]
[1772077230506,0.51922025,88.027,88.001,0.48405739]
[1772077230824,0.51922025,88.027,88.01,3.57938137]
[1772077231329,0.51922025,88.026,88.01,3.57938137]
[1772077231510,0.51922025,88.034,88.01,3.57938137]
[1772077231717,0.51922025,88.048,88.02,3.57938137]
[1772077233122,0.51922025,88.048,88.03,3.57938137]
[1772077233827,0.51922025,88.048,88.0,3.57938137]
[1772077233828,0.52353138,88.046,88.005,0.47779598]
[1772077234031,0.52353138,88.046,88.02,3.57938137]
[1772077235027,0.52353138,88.046,88.01,3.57938137]
[1772077236028,0.52353138,88.044,88.02,3.57938137]
[1772077237622,0.52353138,88.042,88.02,3.57938137]
[1772077240535,11.88187578,88.041,88.02,3.57938137]
[1772077240943,0.52353138,88.04,88.02,3.57938137]
[1772077241939,0.52353138,88.04,88.03,3.57938137]
[1772077242341,11.35860243,88.039,88.03,3.57938137]
[1772077243549,11.35802275,88.044,88.03,3.57938137]
[1772077245653,0.52353138,88.045,88.03,3.57938137]
[1772077246032,39.74156627,88.069,88.031,0.50603479]
[1772077246335,39.74156627,88.069,88.04,3.57938137]
[1772077247947,39.74156627,88.069,88.034,0.50603479]
[1772077248134,0.52353138,88.068,88.03,3.57938137]
[1772077248445,0.52353138,88.068,88.031,0.50603479]
[1772077249750,0.52353138,88.06,88.002,0.50603479]
[1772077250048,0.52353138,88.049,88.002,0.50603479]
[1772077250254,0.52353138,88.049,88.011,0.50603479]
[1772077252249,0.52353138,88.047,88.011,0.50603479]
[1772077254441,0.52353138,88.045,88.011,0.50603479]
[1772077259961,0.5291382,88.043,88.011,0.50603479]
[1772077261342,0.5291382,88.043,87.989,62.2]
[1772077261343,0.5291382,88.039,88.001,0.52903079]
[1772077262040,0.5291382,88.029,88.001,0.52903079]
[1772077262442,0.5291382,88.042,88.011,0.52903079]
[1772077262644,11.3582078,88.043,88.011,0.52903079]
[1772077263051,11.3582078,88.043,88.021,0.52903079]
[1772077263362,0.5291382,88.042,88.021,0.52903079]
[1772077264672,11.8874826,88.041,88.021,0.52903079]
[1772077265170,0.5291382,88.04,88.021,0.52903079]
[1772077266877,0.5291382,88.068,88.031,0.52903079]
[1772077268769,11.35499108,88.067,88.032,11.35950563]
[1772077268975,11.35499108,88.067,88.041,0.52903079]
[1772077269584,0.5291382,88.066,88.031,0.52903079]
[1772077270885,0.5291382,88.098,88.061,0.52903079]
[1772077271192,0.5291382,88.111,88.091,0.52903079]
[1772077271385,0.5291382,88.12,88.091,0.52903079]
[1772077271687,0.5291382,88.126,88.101,0.52903079]
[1772077272391,0.5291382,88.126,88.091,0.52903079]
[1772077272891,0.5291382,88.124,88.091,0.52903079]
[1772077273292,0.5291382,88.124,88.092,0.52903079]
[1772077273894,0.5291382,88.124,88.085,0.52903079]
[1772077274276,0.5291382,88.124,88.09,3.57938137]
[1772077274473,0.5291382,88.124,88.091,0.52903079]
[1772077275093,0.5291382,88.119,88.084,0.52903079]
[1772077276088,0.5291382,88.119,88.09,3.57938137]
[1772077276679,0.5291382,88.119,88.091,0.52903079]
[1772077278514,0.5291382,88.117,88.091,0.52903079]
[1772077278799,0.5291382,88.117,88.084,0.52903079]
[1772077279012,11.34841916,88.118,88.055,28.39111687]
[1772077279013,0.5291382,88.109,88.076,0.52903079]
[1772077280200,0.5291382,88.107,88.08,3.56727358]
[1772077280396,0.5291382,88.107,88.055,28.39111687]
[1772077280397,11.34911237,88.113,88.09,3.56727358]
[1772077280594,11.34911237,88.113,88.091,0.52903079]
[1772077281079,11.87825057,88.113,88.091,0.52903079]
[1772077282483,0.5291382,88.112,88.091,0.52903079]
[1772077282882,11.34911237,88.113,88.046,45.43033669]
[1772077282883,0.5291382,88.108,88.07,3.56727358]
[1772077283094,0.5291382,88.108,88.08,3.56727358]
[1772077283404,0.5291382,88.108,88.081,0.52903079]
[1772077284479,11.87897419,88.107,88.081,0.52903079]
[1772077286102,0.51431185,88.106,88.082,0.53163741]
[1772077288390,0.51431185,88.118,88.084,0.53163741]
[1772077289135,0.51431185,88.118,88.083,11.35292848]
[1772077289287,0.51431185,88.118,88.08,3.56727358]
[1772077289488,0.51431185,88.118,88.082,0.53163741]
[1772077289690,0.51431185,88.118,88.09,3.56727358]
[1772077290910,11.34854795,88.117,88.09,3.56727358]
[1772077291115,0.51431185,88.116,88.09,3.56727358]
[1772077291410,0.51431185,88.116,88.081,0.53163741]
[1772077292608,0.51431185,88.109,88.07,3.56727358]
[1772077293011,0.52073845,88.107,88.07,3.56727358]
[1772077293189,0.52073845,88.107,88.072,0.50706386]
[1772077294692,0.52073845,88.107,88.07,3.56727358]
[1772077295706,39.72397511,88.108,88.07,3.56727358]
[1772077295707,0.52073845,88.105,88.07,3.56727358]
[1772077296212,0.52073845,88.105,88.07,4.07433744]
[1772077296391,0.52073845,88.105,88.071,0.50706386]
[1772077297708,0.52073845,88.103,88.071,0.50706386]
[1772077298109,0.52073845,88.103,88.081,0.50706386]
[1772077299407,11.35048012,88.102,88.081,0.50706386]
[1772077299618,0.52073845,88.101,88.081,0.50706386]
[1772077299794,0.52073845,88.101,88.071,0.50706386]
[1772077301818,0.52073845,88.099,88.071,0.50706386]
[1772077304014,11.87173393,88.098,88.071,0.50706386]
[1772077304826,0.52073845,88.097,88.071,0.50706386]
[1772077307120,11.87199162,88.096,88.071,0.50706386]
[1772077307714,0.52073845,88.089,88.058,0.50706386]
[1772077308307,0.52073845,88.089,88.051,0.50706386]
[1772077309218,0.52073845,88.087,88.053,0.50706386]
[1772077309422,0.52073845,88.087,88.061,0.50706386]
[1772077309610,11.35228407,88.088,88.061,0.50706386]
[1772077309809,0.52073845,88.093,88.071,0.50706386]
[1772077310218,0.52073845,88.093,88.061,0.50706386]
[1772077310921,3.79383402,88.13,88.081,0.50706386]
[1772077310922,11.87044562,88.108,88.081,0.50706386]
[1772077312105,0.52073845,88.107,88.081,0.50706386]
[1772077312632,0.52073845,88.118,88.091,0.50706386]
[1772077315240,11.34829038,88.119,88.091,0.50706386]
[1772077315445,11.34771793,88.124,88.093,0.50706386]
[1772077316022,11.34771793,88.124,88.101,0.51704846]
[1772077317144,0.51889374,88.124,88.067,0.28432314]
[1772077317334,0.51889374,88.124,88.09,3.56727358]
[1772077319171,0.51889374,88.122,88.09,3.90748591]
[1772077319338,0.51889374,88.122,88.091,0.34021233]
[1772077319645,0.51889374,88.122,88.092,0.34021233]
[1772077320631,0.51889374,88.122,88.101,0.34022694]
[1772077321348,0.51889374,88.128,88.101,0.34022694]
[1772077322948,0.1,88.13,88.101,0.34022694]
[1772077323150,0.1,88.13,88.1,3.56727358]
[1772077323151,0.2,88.16,88.131,0.14028311]
[1772077323348,11.86232528,88.157,88.14,3.56727358]
[1772077323567,11.86232528,88.157,88.131,0.14028311]
[1772077324251,0.61889374,88.15,88.119,0.14044902]
[1772077324453,0.51889374,88.139,88.101,0.14044902]
[1772077325254,0.51889374,88.139,88.1,3.56727358]
[1772077325467,0.51889374,88.139,88.086,28.38110311]
[1772077325468,0.51889374,88.127,88.09,3.56727358]
[1772077325755,11.86549766,88.133,88.101,0.14077933]
[1772077326348,0.51889374,88.133,88.11,3.56727358]
[1772077326554,0.51889374,88.133,88.11,3.70805291]
[1772077326751,0.51889374,88.141,88.111,0.14093614]
[1772077327351,0.51889374,88.139,88.111,0.14093614]
[1772077327658,11.34584401,88.138,88.111,0.14093614]
[1772077327840,11.34584401,88.138,88.11,3.56727358]
[1772077327841,0.51889374,88.137,88.11,3.56727358]
[1772077328565,11.34521668,88.143,88.112,0.14110206]
[1772077329142,11.34521668,88.143,88.12,3.56727358]
[1772077329359,0.51889374,88.142,88.111,0.1412571]
[1772077330357,0.51889374,88.14,88.11,3.56727358]
[1772077333060,11.34571529,88.139,88.11,3.56727358]
[1772077333269,0.51889374,88.138,88.11,3.70915243]
[1772077335268,0.51889374,88.136,88.101,11.35051458]
[1772077336054,0.51889374,88.136,88.101,11.49282589]
[1772077338067,0.51889374,88.134,88.102,0.14259549]
[1772077339273,0.1,88.15,88.121,0.14274176]
[1772077339462,0.1,88.15,88.14,3.56221207]
[1772077340575,0.51889374,88.158,88.14,3.56221207]
[1772077342078,0.1,88.17,88.151,0.1431395]
[1772077342279,0.1,88.2,88.18,3.56221207]
[1772077342578,28.33656123,88.226,88.19,3.56221207]
[1772077342753,28.33656123,88.226,88.2,3.56221207]
[1772077343154,0.1,88.25,88.2,4.07926053]
[1772077343351,11.33325337,88.236,88.22,3.56221207]
[1772077343578,11.33383996,88.232,88.22,3.56221207]
[1772077343758,11.33383996,88.232,88.21,3.56221207]
[1772077344076,39.66050606,88.249,88.21,3.56221207]
[1772077344275,0.51889374,88.229,88.178,0.51704846]
[1772077344578,0.51889374,88.229,88.2,3.56221207]
[1772077344763,0.51889374,88.229,88.21,3.56221207]
[1772077345449,0.51889374,88.227,88.21,3.56221207]
[1772077345875,0.51889374,88.227,88.2,3.56221207]
[1772077347781,11.33452723,88.226,88.2,3.56221207]
[1772077348162,0.49985409,88.225,88.2,3.56221207]
[1772077350886,28.33246984,88.238,88.2,3.56221207]
[1772077351180,0.59985409,88.23,88.201,0.53800178]
[1772077352161,0.59985409,88.23,88.2,3.56221207]
[1772077352363,0.59985409,88.23,88.195,0.53800178]
[1772077353369,0.5081508,88.228,88.195,0.53800178]
[1772077353682,3.56221207,88.21,88.172,0.53972311]
[1772077353865,0.5081508,88.209,88.172,0.53972311]
[1772077354665,0.5081508,88.209,88.174,0.53972311]
[1772077355282,0.5081508,88.207,88.174,0.53972311]
[1772077357094,0.5081508,88.207,88.166,0.53972311]
[1772077357274,0.5081508,88.199,88.161,0.53972311]
[1772077357799,0.5081508,88.197,88.162,0.53972311]
[1772077358590,11.33812558,88.198,88.161,11.34282668]
[1772077358591,11.33729802,88.205,88.171,0.53972311]
[1772077358889,0.5081508,88.207,88.171,0.53972311]
[1772077359081,11.33657786,88.211,88.181,0.53972311]
[1772077359572,3.66221207,88.23,88.191,0.53972311]
[1772077360391,3.66221207,88.23,88.185,0.53972311]
[1772077360586,3.56221207,88.22,88.185,0.53972311]